[Event "Allsvenskan div 1, gr.3, R1. SS Manhem - Hultsfreds SK"]
[Site "Goteborg, Sweden"]
[Date "2019.10.20"]
[Round "1.8"]
[White "Lindholm, Gustav"]
[Black "Sköld, Kent-Åke"]
[Result "1-0"]
[TimeControl "90 min. for 40 moves + 30 min. + 30 seconds per move from move one."]
[WhiteElo "1923"]
[BlackElo "1886"]

1. d4 {[%clk 01:30:42]} {[%emt 00:00:02]} Nf6 {[%clk 01:30:42]} {[%emt
00:00:19]} 2. c4 {[%clk 01:31:05]} {[%emt 00:00:07]} g6 {[%clk 01:31:01]}
{[%emt 00:00:11]} 3. Nc3 {[%clk 01:31:23]} {[%emt 00:00:11]} Bg7 {[%clk
01:31:26]} {[%emt 00:00:06]} 4. e4 {[%clk 01:31:24]} {[%emt 00:00:29]} d6
{[%clk 01:31:45]} {[%emt 00:00:12]} 5. Nf3 {[%clk 01:31:42]} {[%emt 00:00:12]}
O-O {[%clk 01:31:14]} {[%emt 00:01:01]} 6. Be2 {[%clk 01:32:00]} {[%emt
00:00:12]} c6 {[%clk 01:27:22]} {[%emt 00:04:21]} 7. O-O {[%clk 01:32:03]}
{[%emt 00:00:27]} Nbd7 {[%clk 01:27:15]} {[%emt 00:00:37]} 8. Be3 {[%clk
01:30:53]} {[%emt 00:01:39]} a6 {[%clk 01:25:29]} {[%emt 00:02:16]} 9. Rc1
{[%clk 01:28:05]} {[%emt 00:03:18]} b5 {[%clk 01:23:18]} {[%emt 00:02:42]} 10.
cxb5 {[%clk 01:27:11]} {[%emt 00:01:24]} cxb5 {[%clk 01:19:01]} {[%emt
00:04:47]} 11. b4 {[%clk 01:21:58]} {[%emt 00:05:42]} Bb7 {[%clk 01:17:04]}
{[%emt 00:02:28]} 12. Nd2 {[%clk 01:20:01]} {[%emt 00:02:27]} Ne8 {[%clk
00:58:32]} {[%emt 00:19:03]} 13. Nb3 {[%clk 01:18:30]} {[%emt 00:01:59]} Rc8
{[%clk 00:57:23]} {[%emt 00:01:39]} 14. Na5 {[%clk 01:17:10]} {[%emt 00:01:49]}
Ba8 {[%clk 00:57:19]} {[%emt 00:00:35]} 15. f3 {[%clk 01:13:23]} {[%emt
00:04:17]} f5 {[%clk 00:57:12]} {[%emt 00:00:37]} 16. a4 {[%clk 01:03:14]}
{[%emt 00:10:39]} Nc7 {[%clk 00:51:27]} {[%emt 00:06:15]} 17. Qb3+ {[%clk
00:59:56]} {[%emt 00:03:46]} Kh8 {[%clk 00:51:41]} {[%emt 00:00:19]} 18. axb5
{[%clk 00:59:18]} {[%emt 00:01:08]} axb5 {[%clk 00:49:50]} {[%emt 00:02:21]} 19.
exf5 {[%clk 00:46:57]} {[%emt 00:12:50]} Rxf5 {[%clk 00:45:40]} {[%emt
00:04:40]} 20. Bd3 {[%clk 00:45:10]} {[%emt 00:02:17]} Rh5 {[%clk 00:45:49]}
{[%emt 00:00:21]} 21. g4 {[%clk 00:43:31]} {[%emt 00:02:09]} Rh3 {[%clk
00:42:45]} {[%emt 00:03:34]} 22. Kg2 {[%clk 00:42:35]} {[%emt 00:01:26]} Rh4
{[%clk 00:43:10]} {[%emt 00:00:05]} 23. h3 {[%clk 00:32:11]} {[%emt 00:10:54]}
e5 {[%clk 00:42:36]} {[%emt 00:01:04]} 24. Nxb5 {[%clk 00:29:54]} {[%emt
00:02:46]} Nxb5 {[%clk 00:37:19]} {[%emt 00:05:47]} 25. Rxc8 {[%clk 00:29:43]}
{[%emt 00:00:41]} Qxc8 {[%clk 00:37:45]} {[%emt 00:00:04]} 26. Bxb5 {[%clk
00:29:56]} {[%emt 00:00:17]} exd4 {[%clk 00:22:57]} {[%emt 00:15:18]} 27. Bg5
{[%clk 00:29:05]} {[%emt 00:01:21]} Rh6 {[%clk 00:22:05]} {[%emt 00:01:23]} 28.
Rc1 {[%clk 00:27:25]} {[%emt 00:02:09]} Qe8 {[%clk 00:18:16]} {[%emt 00:04:19]}
29. Rc7 {[%clk 00:24:34]} {[%emt 00:03:21]} Qe5 {[%clk 00:18:35]} {[%emt
00:00:11]} 30. Bxh6 {[%clk 00:23:01]} {[%emt 00:02:03]} Bxh6 {[%clk 00:17:56]}
{[%emt 00:01:10]} 31. Rxd7 {[%clk 00:20:32]} {[%emt 00:02:57]} Qxb5 {[%clk
00:12:47]} {[%emt 00:05:39]} 32. Rd8+ {[%clk 00:12:33]} {[%emt 00:08:30]} Kg7
{[%clk 00:12:23]} {[%emt 00:00:54]} 33. Qg8+ {[%clk 00:12:52]} {[%emt
00:00:10]} Kf6 {[%clk 00:12:45]} {[%emt 00:00:09]} 34. Rxd6+ {[%clk 00:12:57]}
{[%emt 00:00:25]} 1-0